bitfinex-derivatives/quotes_SOLF0:USTF0_20250307
["timestamp","ask_amount","ask_price","bid_price","bid_amount"]
[1741368929287,0.04415366,142.3,142.28,0.05363643]
[1741368929585,210.7,142.35,142.28,0.05363643]
[1741368929794,0.05080528,142.3,142.28,37.37363643]
[1741368929981,43.63217552,142.38,142.29,3.8293]
[1741368930185,248.1,142.42,142.29,7.3493]
[1741368930485,248.1,142.42,142.29,47.46147552]
[1741368930884,210.76,142.42,142.29,47.46147552]
[1741368931089,37.3,142.45,142.32,43.63217552]
[1741368931284,43.63217552,142.45,142.34,0.05068173]
[1741368931479,43.63217552,142.42,142.33,37.32]
[1741368931689,43.63217552,142.42,142.33,3.5]
[1741368932492,0.05230182,142.39,142.36,0.05006585]
[1741368932884,43.68447734,142.39,142.36,0.05006585]
[1741368933084,37.22,142.38,142.36,0.05006585]
[1741368933288,37.22,142.38,142.3,1.8459]
[1741368933498,43.63217552,142.36,142.3,5.3459]
[1741368933981,43.63217552,142.59,142.3,1.8459]
[1741368934181,1.22294068,142.41,142.3,39.0659]
[1741368934385,210.76,142.45,142.32,43.63217552]
[1741368934594,248.04,142.45,142.32,43.63217552]
[1741368934788,0.04453083,142.4,142.37,0.04466921]
[1741368935187,0.04453083,142.4,142.37,3.54466921]
[1741368935386,0.04453083,142.4,142.37,0.04466921]
[1741368936591,37.16,142.39,142.37,0.04466921]
[1741368936887,37.16,142.39,142.3,1.8459]
[1741368937088,43.63217552,142.34,142.29,1.8546]
[1741368937282,80.81217552,142.34,142.24,3.8049]
[1741368937793,43.63217552,142.31,142.24,7.3049]
[1741368938189,0.0468503,142.29,142.26,0.04655283]
[1741368938592,37.1268503,142.29,142.26,0.04655283]
[1741368940194,0.0468503,142.29,142.26,0.04655283]
[1741368940589,0.0468503,142.29,142.26,3.54655283]
[1741368941899,0.0468503,142.29,142.26,0.04655283]
[1741368942396,43.63217552,142.28,142.26,0.00497071]
[1741368942597,247.68,142.27,142.26,0.00497071]
[1741368943084,248.90397299,142.27,142.26,0.00497071]
[1741368943488,247.68,142.27,142.26,0.00497071]
[1741368944800,210.84,142.27,142.26,0.00497071]
[1741368945497,217.8687,142.27,142.26,0.00497071]
[1741368945802,0.0468503,142.29,142.26,0.00497071]
[1741368946098,0.0468503,142.29,142.26,3.50497071]
[1741368946297,0.0468503,142.29,142.26,0.00497071]
[1741368946800,210.88,142.33,142.26,0.00497071]
[1741368947701,7.0271,142.31,142.26,0.00497071]
[1741368948002,0.04471441,142.3,142.26,3.50497071]
[1741368948196,7.0287,142.27,142.26,3.50497071]
[1741368949505,0.04471441,142.3,142.26,0.00497071]
[1741368950398,210.88,142.33,142.26,0.00497071]
[1741368950595,210.88,142.33,142.3,7.0269]
[1741368951403,210.88,142.33,142.27,1.9218]
[1741368951601,43.63217552,142.31,142.3,0.05145041]
[1741368951808,43.63217552,142.31,142.23,1.9779]
[1741368952103,43.63217552,142.31,142.23,5.4779]
[1741368952300,43.63217552,142.31,142.23,1.9779]
[1741368953108,0.05381736,142.28,142.26,0.04754631]
[1741368953406,7.0287,142.27,142.26,0.04754631]
[1741368953600,43.68599288,142.28,142.26,0.04754631]
[1741368953996,43.63217552,142.32,142.26,0.04754631]
[1741368954409,43.63217552,142.32,142.26,3.54754631]
[1741368954610,43.63217552,142.29,142.26,0.04754631]
[1741368955104,7.0287,142.27,142.26,0.04754631]
[1741368955300,43.68213546,142.29,142.26,0.04754631]
[1741368955707,7.0282,142.28,142.26,0.04754631]
[1741368955909,43.68213546,142.29,142.26,0.04754631]
[1741368956109,7.0286,142.28,142.26,0.04754631]
[1741368956409,0.04995994,142.29,142.26,0.04754631]
[1741368956709,7.0287,142.27,142.26,0.04754631]
[1741368957106,7.0287,142.27,142.26,4.631e-05]
[1741368960505,35.94995994,142.29,142.26,4.631e-05]
[1741368961208,7.0287,142.27,142.26,4.631e-05]
[1741368961411,50.66087552,142.27,142.26,4.631e-05]
[1741368961711,7.0287,142.27,142.26,4.631e-05]
[1741368961912,0.04995994,142.29,142.26,4.631e-05]
[1741368962310,0.04995994,142.29,142.26,3.50004631]
[1741368962608,0.04995994,142.29,142.28,7.0282]
[1741368962815,210.88,142.33,142.28,7.0282]
[1741368963312,254.51217552,142.33,142.2,35.82]
[1741368963513,210.88,142.33,142.2,79.45217552]
[1741368963716,75.42304494,142.38,142.34,7.0249]
[1741368963916,75.42304494,142.38,142.3,35.94]
[1741368964118,0.05074457,142.37,142.35,0.04955741]
[1741368964305,0.05074457,142.37,142.31,39.7544]
[1741368964513,0.05074457,142.37,142.35,0.04978756]
[1741368964818,0.05074457,142.37,142.36,7.0243]
[1741368965120,365.91522046,142.45,142.35,0.04978756]
[1741368965418,365.91522046,142.45,142.35,35.9]
[1741368965618,330.01522046,142.45,142.35,35.9]
[1741368965921,337.03512046,142.45,142.39,7.0226]
[1741368966112,330.01522046,142.45,142.35,35.9]
[1741368966414,0.04865987,142.43,142.41,0.05247091]
[1741368967016,7.0213,142.42,142.41,0.05247091]
[1741368967215,0.04865987,142.43,142.41,0.05247091]
[1741368967618,7.0213,142.42,142.41,0.05247091]
[1741368967916,0.04865987,142.43,142.41,0.05247091]
[1741368968619,210.84,142.51,142.41,0.05247091]
[1741368968814,1.22218905,142.54,142.41,47.49317552]
[1741368969024,119.05522046,142.55,142.44,43.63217552]
[1741368969025,75.42304494,142.55,142.44,43.63217552]
[1741368969212,75.42304494,142.55,142.45,35.72]
[1741368969917,0.04714635,142.51,142.49,0.05001095]
[1741368970111,78.93804494,142.55,142.49,35.73001095]
[1741368970316,71.92304494,142.55,142.49,35.73001095]
[1741368970509,113.13456741,142.57,142.53,43.63217552]
[1741368970510,98.65146251,142.57,142.53,43.63217552]
[1741368970722,79.01616251,142.57,142.56,7.0144]
[1741368970916,49.08896251,142.57,142.56,50.64657552]
[1741368971119,26.04106251,142.57,142.56,54.14657552]
[1741368971316,26.04106251,142.57,142.55,7.06075066]
[1741368971519,26.04106251,142.57,142.55,0.04595066]
[1741368971716,0.05343348,142.58,142.55,0.04595066]
[1741368972616,0.05343348,142.58,142.57,7.0139]
[1741368973021,0.05343348,142.58,142.55,0.04595066]
[1741368973623,0.05343348,142.58,142.56,7.0143]
[1741368974325,0.05343348,142.58,142.57,7.0139]
[1741368974526,0.05343348,142.58,142.55,0.04595066]
[1741368974921,7.07343348,142.58,142.55,0.04595066]
[1741368975227,35.6,142.57,142.47,35.62]
[1741368975419,7.0154,142.54,142.47,7.0184]
[1741368975823,7.0179,142.49,142.4,76.59999039]
[1741368976015,35.58,142.53,142.4,76.59999039]
[1741368976016,79.21217552,142.53,142.4,76.59999039]
[1741368976219,86.23217552,142.53,142.4,76.59999039]
[1741368976416,0.05272053,142.49,142.46,0.04675934]
[1741368976821,42.63272053,142.49,142.46,0.04675934]
[1741368977527,7.0184,142.48,142.36,35.48]
[1741368977729,3.7799,142.48,142.36,35.48]
[1741368977927,10.7999,142.48,142.36,35.48]
[1741368978129,10.7999,142.48,142.4,7.0218]
[1741368978316,10.7999,142.48,142.36,35.42]
[1741368978515,17.8183,142.48,142.37,7.0238]
[1741368978722,0.04920378,142.43,142.41,0.05214681]
[1741368978923,35.4,142.45,142.41,0.05214681]
[1741368979128,0.05153218,142.43,142.41,7.07384681]
[1741368979322,1.8529,142.48,142.41,0.05214681]
[1741368979526,0.05125432,142.43,142.41,0.05214681]
[1741368979729,8.8729,142.48,142.42,7.0209]
[1741368979929,8.8729,142.48,142.41,0.05214681]
[1741368980231,0.04567021,142.46,142.42,7.0213]
[1741368980532,35.32,142.6,142.43,43.63217552]
[1741368980829,3.8989,142.61,142.55,7.0145]
[1741368981125,3.8989,142.61,142.53,35.38]
[1741368981326,10.9189,142.61,142.53,35.38]
[1741368981524,0.04767317,142.58,142.56,0.05126966]
[1741368981923,7.06767317,142.58,142.56,0.05126966]
[1741368982519,210.62,142.7,142.57,35.36]
[1741368982731,43.63217552,142.71,142.57,35.36]
[1741368983031,7.0096,142.66,142.54,35.44]
[1741368983228,43.63217552,142.68,142.54,35.44]
[1741368983529,50.65217552,142.68,142.6,7.012]
[1741368983831,0.04537578,142.62,142.6,0.05193787]
[1741368984035,57.66117552,142.68,142.6,0.05193787]
[1741368984232,50.65217552,142.68,142.6,0.05193787]
[1741368984532,0.04472409,142.65,142.6,0.05193787]
[1741368985029,7.06472409,142.65,142.6,0.05193787]
[1741368985232,7.06472409,142.65,142.6,7.06423787]
[1741368985428,7.06472409,142.65,142.6,0.05193787]
[1741368986034,86.01689961,142.65,142.51,35.34]
[1741368986225,43.63217552,142.62,142.52,7.016]
[1741368986425,39.3038,142.61,142.51,35.34]
[1741368986830,46.3238,142.61,142.51,35.34]
[1741368987225,0.04782238,142.57,142.56,7.0142]
[1741368987535,0.04932973,142.58,142.55,0.04940105]
[1741368988036,7.06932973,142.58,142.55,0.04940105]
[1741368991336,0.04932973,142.58,142.57,7.0139]
[1741368991936,2.973e-05,142.58,142.57,7.0139]
[1741368992136,2.973e-05,142.58,142.57,10.5139]
[1741368993045,2.973e-05,142.58,142.57,54.14607552]
[1741368993331,210.5,142.68,142.57,54.14607552]
[1741368993332,3.8358,142.72,142.7,7.0075]
[1741368993537,10.8558,142.72,142.64,34.9]
[1741368994240,43.63217552,142.71,142.58,34.86]
[1741368994539,0.04905622,142.66,142.63,0.04931235]
[1741368994735,34.88905622,142.66,142.63,0.04931235]
[1741368994943,41.90905622,142.66,142.55,34.84]
[1741368995136,7.0111,142.63,142.55,34.84]
[1741368995335,210.48,142.65,142.55,34.84]
[1741368995537,254.11217552,142.65,142.54,9.56783089]
[1741368995730,43.63217552,142.62,142.54,9.56783089]
[1741368995939,38.2719,142.61,142.54,9.56783089]
[1741368996143,0.04569548,142.59,142.57,0.05077419]
[1741368996339,0.04569548,142.59,142.54,9.56783089]
[1741368996534,7.06569548,142.59,142.54,9.56783089]
[1741368996943,7.0145,142.56,142.54,9.56783089]
[1741368997141,34.72,142.57,142.54,9.56783089]
[1741368997646,41.74,142.57,142.54,0.04903647]
[1741368997942,7.0144,142.56,142.54,0.04903647]
[1741368998142,41.74,142.57,142.54,0.04903647]
[1741368998647,48.7543,142.57,142.54,0.04903647]
[1741368998941,41.74,142.57,142.45,47.19927552]
[1741368999147,41.74,142.57,142.48,7.0182]
[1741368999343,41.74,142.57,142.46,34.56]
[1741368999534,254.11217552,142.56,142.43,9.56783089]
[1741368999736,254.11217552,142.56,142.43,44.12783089]
[1741368999937,261.13217552,142.56,142.43,44.12783089]
[1741369000137,0.05204028,142.51,142.48,0.04546278]
[1741369000632,7.07204028,142.51,142.48,0.04546278]
[1741369001444,0.05204028,142.51,142.48,0.04546278]
[1741369002147,41.55204028,142.51,142.48,0.04546278]
[1741369002446,41.55204028,142.51,142.43,38.42612098]
[1741369002945,85.1842158,142.51,142.43,38.42612098]
[1741369003248,3.4506,142.5,142.43,9.56783089]
[1741369003445,7.0187,142.48,142.46,0.04493757]
[1741369003650,34.6,142.47,142.46,0.04493757]
[1741369004244,0.04911435,142.48,142.46,0.04493757]
[1741369004849,0.04911435,142.48,142.47,7.0188]
[1741369005052,1.435e-05,142.48,142.47,7.0188]
[1741369005246,50.65218987,142.48,142.42,28.85829009]
[1741369005443,43.63217552,142.45,142.41,76.59999039]
[1741369005750,7.0218,142.41,142.4,93.96169902]
[1741369005942,35.2,142.41,142.39,9.67095045]
[1741369006345,35.24546537,142.41,142.39,9.71629931]
[1741369007352,35.24546537,142.41,142.39,0.04534886]
[1741369008165,0.04546537,142.41,142.39,0.04534886]
[1741369011155,35.16,142.4,142.39,0.04534886]
[1741369011360,35.16,142.4,142.3,7.0577]
[1741369011361,78.79217552,142.4,142.3,7.0577]
[1741369011560,78.79217552,142.4,142.32,7.0261]
[1741369011764,43.63217552,142.37,142.25,3.4689]
[1741369012064,245.86,142.36,142.25,3.4689]
[1741369012265,252.8846,142.36,142.27,7.0286]
[1741369012459,252.8846,142.36,142.29,0.02570875]
[1741369012460,0.05082984,142.32,142.29,0.02570875]
[1741369013060,2.984e-05,142.32,142.29,0.02570875]
[1741369013460,2.984e-05,142.32,142.3,7.0272]
[1741369013862,2.984e-05,142.32,142.31,7.0267]
[1741369014668,2.984e-05,142.32,142.31,45.8467]
[1741369014964,2.984e-05,142.32,142.31,42.3267]
[1741369015169,2.984e-05,142.32,142.31,89.47887552]
[1741369016369,210.7,142.48,142.31,126.08435104]
[1741369016568,1.22244665,142.47,142.46,7.0193]
[1741369016771,1.22244665,142.47,142.39,43.63217552]
[1741369016772,290.47527552,142.56,142.42,35.66]
[1741369016964,2.62481054,142.54,142.42,35.66]
[1741369017268,1.40311491,142.54,142.44,43.63217552]
[1741369017662,1.40311491,142.54,142.52,7.0162]
[1741369017868,43.63217552,142.59,142.48,35.75308348]
[1741369018059,43.63217552,142.59,142.48,42.7182]
[1741369018257,36.9211169,142.61,142.48,35.7]
[1741369018462,36.9211169,142.61,142.49,3.6038]
[1741369019164,0.04851717,142.56,142.54,0.05148805]
[1741369019365,7.0143,142.57,142.54,0.05148805]
[1741369019564,0.04673424,142.56,142.54,0.05148805]
[1741369020678,210.72,142.62,142.54,0.05148805]
[1741369020968,35.52,142.65,142.54,7.06678805]
[1741369021173,7.0105,142.64,142.54,0.05148805]
[1741369021365,35.52,142.65,142.53,7.5658]
[1741369021565,43.63217552,142.64,142.53,7.5658]
[1741369021866,0.05352016,142.6,142.52,7.0163]
[1741369022072,0.05352016,142.6,142.49,3.6038]
[1741369022574,7.0148,142.56,142.48,35.68]
[1741369022871,254.23217552,142.59,142.48,35.68]
[1741369023064,0.04611917,142.53,142.51,0.04493145]
[1741369023264,7.015,142.55,142.51,0.04493145]
[1741369023470,0.04490201,142.53,142.51,0.04493145]
[1741369024268,210.6,142.59,142.51,0.04493145]
[1741369024670,210.6,142.65,142.56,7.014]
[1741369024872,79.29217552,142.68,142.56,35.66]
[1741369025174,1.22036751,142.73,142.63,43.63217552]
[1741369025375,114.15235006,142.78,142.69,43.63217552]
[1741369025675,114.15235006,142.78,142.66,43.63217552]
[1741369025676,58.66237043,142.78,142.77,7.0041]
[1741369025874,54.43037043,142.78,142.77,46.5041]
[1741369026075,54.43037043,142.78,142.77,36.0]
[1741369027577,0.04791101,142.79,142.76,0.04772753]
[1741369029281,0.04791101,142.79,142.66,79.49217552]
[1741369029471,43.63217552,142.74,142.6,35.88]
[1741369029782,39.7469,142.73,142.61,5.93411338]
[1741369030671,0.05381927,142.68,142.66,0.04962747]
[1741369030877,1.927e-05,142.68,142.67,35.88]
[1741369031074,7.7901,142.8,142.67,41.81411338]
[1741369031275,3.8669,142.86,142.72,43.63217552]
[1741369031473,3.8714,142.85,142.72,43.63217552]
[1741369032073,3.8714,142.85,142.75,43.63217552]
[1741369032272,0.04858468,142.8,142.77,0.05203454]
[1741369032475,0.04858468,142.8,142.78,79.77217552]
[1741369032674,0.04858468,142.8,142.79,7.0031]
[1741369032881,0.04858468,142.8,142.78,83.27217552]
[1741369033071,7.875,142.93,142.78,83.27217552]
[1741369033271,7.875,142.93,142.85,43.63217552]
[1741369033475,3.9332,142.93,142.86,36.32]
[1741369033675,3.9332,142.93,142.83,36.32]
[1741369034077,3.9332,142.93,142.82,43.63217552]
[1741369034381,0.04461097,142.89,142.79,36.3]
[1741369034581,79.91217552,142.89,142.76,36.3]
[1741369034783,3.8985,142.88,142.76,36.3]
[1741369034978,3.8985,142.88,142.73,79.91217552]
[1741369035285,43.63217552,142.86,142.73,79.91217552]
[1741369035489,7.05280104,142.81,142.78,0.05327495]
[1741369035683,0.05070104,142.81,142.78,0.05327495]
[1741369035875,7.05290104,142.81,142.78,0.05327495]
[1741369036078,0.05070104,142.81,142.78,0.05327495]
[1741369037075,210.33070104,142.81,142.59,253.91217552]
[1741369037281,43.63217552,142.79,142.65,43.63217552]
[1741369037480,36.16,142.78,142.65,43.63217552]
[1741369037688,40.2334,142.78,142.65,43.63217552]
[1741369038285,0.05093095,142.73,142.7,0.04466801]
[1741369038586,246.44,142.72,142.55,36.26]
[1741369038789,43.63217552,142.7,142.56,43.63217552]
[1741369039677,0.05195427,142.64,142.62,0.04490789]
[1741369040083,36.16,142.67,142.54,52.57944268]
[1741369040292,36.16,142.67,142.62,0.05075529]
[1741369040293,0.05101799,142.64,142.62,0.05075529]
[1741369040488,0.05101799,142.64,142.53,36.16]
[1741369040791,4.0734,142.66,142.62,0.04733684]
[1741369040981,4.0734,142.66,142.56,43.63217552]
[1741369041177,7.0133,142.59,142.51,79.81217552]
[1741369041381,0.05093424,142.6,142.51,79.81217552]
[1741369041588,36.18,142.62,142.54,0.04470119]
[1741369041887,0.05312637,142.57,142.54,0.04470119]
[1741369044691,0.05312637,142.57,142.46,35.9]
[1741369044984,79.53217552,142.58,142.46,35.9]
[1741369045284,79.53217552,142.58,142.38,44.85346384]
[1741369045285,43.63217552,142.55,142.38,79.55217552]
[1741369045490,7.014,142.57,142.43,43.63217552]
[1741369045686,44.85354957,142.59,142.46,43.63217552]
[1741369045988,0.05353262,142.51,142.49,0.03547339]
[1741369046177,35.9,142.58,142.49,0.03547339]
[1741369046383,0.04718076,142.51,142.46,43.63217552]
[1741369046686,35.92,142.56,142.46,43.63217552]
[1741369046879,0.05389081,142.5,142.47,0.03547339]
[1741369047083,3.7423,142.6,142.49,43.63217552]
[1741369047287,3.7423,142.6,142.52,43.63217552]
[1741369047480,3.7423,142.6,142.53,35.88]
[1741369047989,35.86,142.64,142.53,35.88]
[1741369048184,43.63217552,142.8,142.58,43.63217552]
[1741369048185,35.86,142.71,142.58,43.63217552]
[1741369048380,4.0753,142.72,142.59,35.96]
[1741369048580,0.04493108,142.66,142.61,43.63217552]
[1741369048885,0.04493108,142.66,142.64,0.04899844]
[1741369049081,4.0753,142.72,142.63,35.92]
[1741369049278,210.4,142.74,142.69,7.0075]
[1741369049586,210.4,142.74,142.67,35.92]
[1741369050286,0.05230904,142.72,142.69,0.04436429]
[1741369051084,7.7726,142.78,142.7,43.63217552]
[1741369051278,210.36,142.8,142.71,35.82]
[1741369051882,35.8,142.79,142.67,79.43217552]
[1741369052084,43.63217552,142.78,142.67,35.8]
[1741369052281,43.63217552,142.78,142.72,0.05258495]
[1741369052490,0.04715389,142.74,142.64,35.78]
[1741369052887,3.7353,142.74,142.64,35.78]
[1741369053383,210.32,142.89,142.69,43.63217552]
[1741369053584,7.0019,142.82,142.75,7.0049]
[1741369053782,0.04414489,142.8,142.7,35.72]
[1741369054087,0.04414489,142.8,142.79,7.0031]
[1741369054287,3.9822,142.86,142.77,0.05276376]
[1741369054492,1.934e-05,142.81,142.78,43.63217552]
[1741369054694,1.934e-05,142.81,142.8,7.0026]
[1741369054891,1.934e-05,142.81,142.8,42.8226]
[1741369056795,3.8403,142.93,142.8,82.95217552]
[1741369056997,3.8403,142.93,142.85,43.63217552]
[1741369057185,213.9299,143.0,142.86,35.7]
[1741369057490,47.61977552,142.99,142.85,35.7]
[1741369057799,0.04484904,142.93,142.91,0.05388543]
[1741369058088,43.63217552,142.93,142.82,35.72]
[1741369058290,43.6522,142.99,142.85,43.63217552]
[1741369058888,43.6522,142.99,142.91,6.9971]
[1741369059090,0.04912406,142.93,142.91,0.04469135]
[1741369059286,7.9122,142.99,142.91,0.04469135]
[1741369059598,0.05320527,142.93,142.91,0.04469135]
[1741369059799,7.9122,142.99,142.91,7.04149135]
[1741369060096,3.9876,142.99,142.91,7.04149135]
[1741369060295,0.04946376,142.96,142.91,0.04469135]
[1741369060892,6.996,142.94,142.91,0.04469135]
[1741369061094,0.04946376,142.96,142.91,0.04469135]
[1741369061486,0.04946376,142.96,142.89,5.88356362]
[1741369061687,0.04946376,142.96,142.88,35.78]
[1741369061883,6.9962,142.94,142.88,35.78]
[1741369062090,0.04946376,142.96,142.85,35.56]
[1741369062398,6.9981,142.9,142.83,7.0011]
[1741369062698,0.05023961,142.88,142.85,0.04771368]
[1741369062893,35.54,142.93,142.83,7.0011]
[1741369063197,0.04432871,142.88,142.85,0.04651047]
[1741369063397,0.04432871,142.88,142.85,5.94800635]
[1741369063599,3.92752871,142.88,142.85,5.94800635]
[1741369064098,3.92752871,142.88,142.82,35.54]
[1741369064691,3.92752871,142.88,142.77,28.47955431]
[1741369064890,47.37287552,142.87,142.77,63.85955431]
[1741369065287,0.0467122,142.83,142.81,0.03206677]
[1741369065796,0.0467122,142.83,142.71,28.47955431]
[1741369065995,0.0467122,142.83,142.73,43.63217552]
[1741369066189,7.0012,142.83,142.78,7.0034]
[1741369066394,35.32,142.85,142.77,35.34]
[1741369066791,0.05359608,142.82,142.78,7.0034]
[1741369066999,0.05359608,142.82,142.77,35.34]
[1741369067592,0.05359608,142.82,142.73,78.89217552]
[1741369067896,35.32,142.85,142.74,7.0052]
[1741369068090,0.05321795,142.79,142.73,78.89217552]
[1741369068605,0.05321795,142.79,142.78,7.0036]
[1741369068790,0.05321795,142.79,142.73,78.89217552]
[1741369068992,0.05321795,142.79,142.72,35.22]
[1741369069401,0.05321795,142.79,142.73,43.63217552]
[1741369070495,0.05321795,142.79,142.72,35.22]
[1741369071197,0.05321795,142.79,142.73,43.63217552]
[1741369071403,0.05321795,142.79,142.78,7.0036]
[1741369072097,0.05321795,142.79,142.76,35.1]
[1741369072494,0.05321795,142.79,142.78,7.0036]
[1741369074006,0.05321795,142.79,142.76,35.1]
[1741369074298,1.795e-05,142.79,142.78,43.63217552]
[1741369074603,3.8832,142.88,142.78,43.63217552]
[1741369074801,3.8832,142.88,142.82,43.63217552]
[1741369075002,10.8819,142.88,142.84,7.0005]
[1741369075194,3.8832,142.88,142.82,78.67217552]
[1741369075599,0.05198354,142.86,142.84,0.05321795]
[1741369076499,0.05198354,142.86,142.85,7.0002]
[1741369077097,3.8626,142.96,142.94,6.9957]
[1741369077300,3.8626,142.96,142.9,78.63217552]
[1741369077601,6.9956,142.95,142.87,78.63217552]
[1741369077795,3.8626,142.96,142.87,78.63217552]
[1741369077996,0.05236717,142.93,142.9,0.05339325]
[1741369078197,6.9968,142.92,142.9,0.05339325]
[1741369078398,0.05236717,142.93,142.81,35.02]
[1741369078598,35.02,142.94,142.81,35.02]
[1741369078809,6.998,142.9,142.84,7.0005]
[1741369079106,35.02,142.94,142.81,35.02]
[1741369079308,43.63217552,142.92,142.81,35.02]
[1741369079511,0.04773519,142.89,142.86,0.04814818]
[1741369079803,6.9995,142.87,142.81,7.002]
[1741369080008,7.8519,142.91,142.78,34.96]
[1741369080210,5.08072486,142.96,142.86,43.63217552]
[1741369080509,3.8626,142.96,142.87,35.3]
[1741369080809,7.04684374,142.93,142.87,35.3]
[1741369080999,35.33024374,142.93,142.81,35.3]
[1741369081199,257.77397552,142.92,142.8,43.63217552]
[1741369081395,0.05184721,142.88,142.8,43.63217552]
[1741369081603,35.33184721,142.88,142.74,35.26]
[1741369081903,43.63217552,142.87,142.71,111.44904914]
[1741369082109,0.05188678,142.82,142.71,76.18904914]
[1741369082302,0.05188678,142.82,142.7,9.83198475]
[1741369082303,245.35188678,142.82,142.7,9.47938475]
[1741369082496,0.0529065,142.79,142.7,9.47938475]
[1741369082700,35.22,142.78,142.7,9.47938475]
[1741369082901,7.0055,142.75,142.7,9.47938475]
[1741369083104,0.04810241,142.76,142.7,9.47938475]
[1741369084804,43.63217552,142.75,142.62,9.47938475]
[1741369085002,43.63217552,142.72,142.63,7.0108]
[1741369085209,0.05295471,142.7,142.63,7.0108]
[1741369085400,35.1,142.69,142.62,9.47938475]
[1741369085806,0.05361633,142.67,142.62,9.47938475]
[1741369087604,0.05361633,142.67,142.57,43.63217552]
[1741369087803,35.18,142.68,142.55,37.95893906]
[1741369088100,0.05168502,142.63,142.55,37.95893906]
[1741369089710,7.75168502,142.63,142.55,37.95893906]
[1741369089901,217.97168502,142.63,142.55,37.95893906]
[1741369090106,3.7148,142.62,142.55,37.95893906]
[1741369090503,3.7148,142.62,142.5,37.95893906]
[1741369090704,0.0527593,142.6,142.5,37.95893906]
[1741369090909,34.9927593,142.6,142.5,37.95893906]
[1741369091210,0.04559173,142.56,142.5,37.95893906]
[1741369091412,0.04559173,142.56,142.51,43.63217552]
[1741369091711,0.04559173,142.56,142.55,7.0149]
[1741369092507,0.04559173,142.56,142.52,34.92]
[1741369092905,0.04559173,142.56,142.5,37.95893906]
[1741369093316,0.04559173,142.56,142.5,81.59111458]
[1741369093812,0.04559173,142.56,142.55,7.0149]
[1741369094209,0.04559173,142.56,142.5,43.63217552]
[1741369094416,0.04559173,142.56,142.48,34.8]
[1741369096317,0.04559173,142.56,142.47,43.63217552]
[1741369096510,78.43217552,142.59,142.47,78.27217552]
[1741369096820,0.0445031,142.53,142.47,78.27217552]
[1741369097019,0.0445031,142.53,142.52,7.0164]
[1741369098720,0.0445031,142.53,142.47,78.27217552]
[1741369099021,0.0445031,142.53,142.47,43.63217552]
[1741369099225,3.7148,142.62,142.5,43.63217552]
[1741369099415,3.7148,142.62,142.51,34.54]
[1741369099711,43.63217552,142.57,142.49,7.0178]
[1741369099913,43.63217552,142.54,142.41,43.63217552]
[1741369100118,46.484,142.53,142.4,9.47938475]
[1741369100532,0.04604595,142.48,142.45,0.04816316]
[1741369100721,34.56604595,142.48,142.45,0.04816316]
[1741369101429,0.04604595,142.48,142.47,7.0188]
[1741369103435,0.04604595,142.48,142.45,0.04816316]
[1741369105029,34.46604595,142.48,142.45,0.04816316]
[1741369105536,34.46604595,142.48,142.45,7.06786316]
[1741369105728,34.46604595,142.48,142.45,0.04816316]
[1741369106038,41.48444595,142.48,142.45,0.04816316]
[1741369106831,34.46604595,142.48,142.45,0.04816316]
[1741369107136,78.09822147,142.48,142.41,7.0214]
[1741369107431,43.63217552,142.45,142.32,254.11217552]
[1741369107639,34.26,142.44,142.38,7.0231]
[1741369107833,42.0783,142.44,142.38,7.0231]
[1741369108035,7.021,142.43,142.38,7.0231]
[1741369108239,0.04767308,142.42,142.41,7.0218]
[1741369109032,7.308e-05,142.42,142.41,7.0218]
[1741369109836,7.308e-05,142.42,142.41,88.33397552]
[1741369110040,7.308e-05,142.42,142.41,84.81397552]
[1741369110537,7.308e-05,142.42,142.41,88.33397552]
[1741369111138,7.308e-05,142.42,142.41,41.1818]
[1741369113638,7.308e-05,142.42,142.41,7.0218]
[1741369113833,7.308e-05,142.42,142.4,0.0476]
[1741369114644,7.308e-05,142.42,142.41,7.0218]
[1741369116239,7.308e-05,142.42,142.4,0.0476]
[1741369116845,7.308e-05,142.42,142.41,7.0218]
[1741369121548,7.308e-05,142.42,142.41,10.5418]
[1741369121851,7.7882,142.53,142.52,7.0164]
[1741369122549,7.7882,142.53,142.46,33.9]
[1741369122750,7.7882,142.53,142.51,7.0167]
[1741369122941,7.7882,142.53,142.48,0.04739283]
[1741369123144,7.83936761,142.53,142.48,0.04739283]
[1741369123745,6.761e-05,142.53,142.48,43.67956835]
[1741369124354,6.761e-05,142.53,142.52,7.0164]